bitfinex/quotes_SOLUSD_20250724
["timestamp","ask_amount","ask_price","bid_price","bid_amount"]
[1753391769683,55.03364457,187.78,187.77,0.2]
[1753391769868,55.73364457,187.78,187.77,0.2]
[1753391770171,55.73364457,187.78,187.72,0.69]
[1753391770379,55.73364457,187.78,187.7,6.4078]
[1753391770380,42.78468397,187.74,187.7,7.0978]
[1753391770555,26.0,187.74,187.71,0.69]
[1753391770758,26.0,187.73,187.71,0.69]
[1753391771771,26.0,187.73,187.71,6.30161878]
[1753391772073,0.5289606,187.77,187.72,0.69]
[1753391772449,5.32560624,187.78,187.72,0.69]
[1753391772649,26.0,187.75,187.72,0.69]
[1753391773171,26.0,187.75,187.73,0.06]
[1753391773569,26.0,187.75,187.74,0.69]
[1753391773783,0.5289606,187.81,187.76,6.4344]
[1753391773950,26.0,187.8,187.77,0.69]
[1753391774574,26.0,187.8,187.78,0.69]
[1753391774803,0.5289606,187.79,187.76,6.4344]
[1753391775078,26.0,187.77,187.73,0.75]
[1753391775251,26.0,187.75,187.73,0.75]
[1753391775451,0.5289606,187.74,187.73,0.75]
[1753391776262,0.5289606,187.77,187.73,0.75]
[1753391776463,26.0,187.75,187.73,0.75]
[1753391776760,0.5289606,187.74,187.73,0.75]
[1753391777981,26.0,187.75,187.73,0.75]
[1753391778595,26.0,187.75,187.74,0.69]
[1753391779875,26.0,187.75,187.73,0.06]
[1753391780060,0.5289606,187.74,187.73,0.06]
[1753391780262,26.0,187.74,187.73,0.06]
[1753391781267,42.78468397,187.74,187.73,0.06]
[1753391781574,43.48468397,187.74,187.73,0.06]
[1753391782178,48.81119936,187.74,187.73,0.06]
[1753391784691,86.53119936,187.74,187.73,0.06]
[1753391785267,26.0,187.66,187.51,6.1054]
[1753391785468,26.0,187.62,187.52,0.69]
[1753391785694,0.5289606,187.61,187.52,0.69]
[1753391785874,26.0,187.62,187.52,0.97432314]
[1753391786068,0.5289606,187.64,187.52,0.97432314]
[1753391786276,26.0,187.61,187.54,0.28432314]
[1753391786479,26.0,187.6,187.55,0.69]
[1753391787077,0.5289606,187.59,187.55,0.69]
[1753391787279,0.5289606,187.59,187.56,0.69]
[1753391787475,0.5289606,187.59,187.57,0.68]
[1753391788183,0.5289606,187.59,187.54,0.2]
[1753391788401,0.5289606,187.59,187.58,0.68]
[1753391788594,0.5289606,187.62,187.58,0.68]
[1753391788899,26.0,187.63,187.59,6.4939]
[1753391789267,26.0,187.63,187.6,0.68]
[1753391790295,26.0,187.63,187.6,6.01035011]
[1753391790482,37.72,187.69,187.61,0.68]
[1753391790680,26.0,187.66,187.61,0.68]
[1753391790890,26.0,187.66,187.61,30.68]
[1753391791086,0.5289606,187.65,187.62,0.68]
[1753391791499,1.2089606,187.65,187.61,30.0]
[1753391791793,1.2089606,187.65,187.61,30.68]
[1753391792706,0.5289606,187.65,187.61,30.68]
[1753391793682,0.5289606,187.65,187.62,0.68]
[1753391793885,0.5289606,187.65,187.62,30.68]
[1753391794092,26.0,187.64,187.63,0.68]
[1753391794689,26.0,187.65,187.63,0.68]
[1753391795096,26.0,187.65,187.63,30.68]
[1753391795290,26.0,187.65,187.64,0.68]
[1753391795932,26.0,187.66,187.64,0.68]
[1753391796100,0.5289606,187.7,187.64,6.00918861]
[1753391796292,0.5289606,187.7,187.65,0.68]
[1753391796487,26.0,187.69,187.65,0.68]
[1753391797106,3.98724232,187.71,187.66,0.68]
[1753391797288,0.5289606,187.71,187.67,6.5444]
[1753391797489,0.5289606,187.71,187.68,0.68]
[1753391797692,37.74,187.72,187.67,6.5444]
[1753391797890,26.0,187.7,187.69,0.68]
[1753391798091,0.5289606,187.74,187.69,0.68]
[1753391798299,26.0,187.73,187.69,0.68]
[1753391798689,38.2689606,187.76,187.69,0.68]
[1753391799207,26.0,187.73,187.69,0.68]
[1753391799390,26.5289606,187.72,187.69,0.68]
[1753391799589,26.0,187.72,187.69,0.68]
[1753391799800,26.0,187.72,187.7,0.68]
[1753391800000,26.0,187.71,187.7,0.68]
[1753391800185,26.0,187.71,187.67,6.5444]
[1753391800386,0.5289606,187.7,187.67,6.5444]
[1753391801402,1.2089606,187.7,187.66,0.68]
[1753391801600,26.0,187.69,187.66,0.68]
[1753391803610,26.0,187.69,187.65,5.32900689]
[1753391803811,38.9289606,187.75,187.67,0.68]
[1753391804000,26.0,187.72,187.67,0.68]
[1753391804505,26.0,187.72,187.68,0.68]
[1753391804690,26.0,187.72,187.69,0.68]
[1753391805286,0.5289606,187.71,187.66,0.68]
[1753391805611,26.0,187.7,187.67,0.68]
[1753391807102,26.0,187.7,187.67,5.3284867]
[1753391807500,26.0,187.7,187.68,0.68]
[1753391809109,32.53604734,187.72,187.66,0.68]
[1753391809412,0.68,187.71,187.66,0.68]
[1753391809620,1.2089606,187.7,187.66,0.68]
[1753391810712,0.68,187.69,187.64,6.00934701]
[1753391810892,0.68,187.69,187.65,0.68]
[1753391811288,27.2089606,187.68,187.63,37.74]
[1753391811509,0.68,187.67,187.63,37.74]
[1753391811700,0.5289606,187.66,187.62,6.3549]
[1753391812094,0.68,187.65,187.62,6.3549]
[1753391812507,1.2089606,187.64,187.61,0.06]
[1753391812895,1.7089606,187.64,187.61,0.06]
[1753391813214,26.0,187.63,187.61,0.74]
[1753391813589,26.0,187.62,187.61,0.74]
[1753391814889,26.68,187.62,187.61,0.06]
[1753391815133,26.0,187.62,187.61,0.06]
[1753391816013,43.46468397,187.62,187.61,0.06]
[1753391816190,81.18468397,187.62,187.61,0.06]
[1753391816713,86.51460615,187.62,187.61,0.06]
[1753391816922,42.78468397,187.58,187.57,0.06]
[1753391817222,42.78468397,187.58,187.53,30.0]
[1753391817519,26.0,187.54,187.53,30.0]
[1753391817895,26.69,187.54,187.53,30.0]
[1753391818135,19.13368397,187.54,187.53,1.96795602]
[1753391818308,26.0,187.44,187.37,0.69]
[1753391818618,31.33583156,187.42,187.37,0.69]
[1753391818797,0.5289606,187.41,187.38,30.0]
[1753391819103,26.0,187.39,187.35,5.33756533]
[1753391819303,26.0,187.39,187.36,0.69]
[1753391819515,26.0,187.39,187.37,0.69]
[1753391820002,26.0,187.4,187.37,0.69]
[1753391820199,26.0,187.4,187.38,0.69]
[1753391820932,0.5289606,187.44,187.38,0.69]
[1753391820933,0.5289606,187.39,187.38,30.0]
[1753391821297,17.90364457,187.39,187.38,30.0]
[1753391822309,0.5289606,187.39,187.38,30.0]
[1753391822505,26.0,187.39,187.38,30.0]
[1753391822808,0.5289606,187.41,187.38,30.69]
[1753391823007,26.5289606,187.41,187.39,0.69]
[1753391823218,26.5289606,187.41,187.39,30.69]
[1753391823417,8.11673348,187.44,187.39,30.69]
[1753391823418,3.31047138,187.44,187.4,0.69]
[1753391823606,0.5289606,187.51,187.4,0.69]
[1753391823806,2.78183223,187.49,187.4,0.69]
[1753391824024,0.5289606,187.48,187.4,0.69]
[1753391824326,0.5289606,187.48,187.41,30.0]
[1753391824536,0.5289606,187.48,187.41,30.69]
[1753391824906,5.3341868,187.47,187.41,30.69]
[1753391825234,26.0,187.44,187.42,30.0]
[1753391825830,0.5289606,187.43,187.42,30.0]
[1753391826532,17.90364457,187.43,187.42,30.0]
[1753391826915,0.5289606,187.45,187.42,30.69]
[1753391827115,26.0,187.46,187.43,0.69]
[1753391827316,26.0,187.46,187.43,30.69]
[1753391827521,26.0,187.46,187.44,0.69]
[1753391827930,0.5,187.45,187.43,30.0]
[1753391828228,0.5289606,187.5,187.43,30.0]
[1753391828428,16.78468397,187.53,187.44,6.6023]
[1753391828608,0.5289606,187.52,187.45,0.69]
[1753391828813,5.3330489,187.51,187.45,0.69]
[1753391829114,0.5289606,187.5,187.45,0.69]
[1753391829332,26.5289606,187.5,187.46,0.69]
[1753391829511,26.0,187.49,187.47,0.69]
[1753391829846,26.0,187.45,187.44,7.2923]
[1753391830441,26.0,187.49,187.44,7.2923]
[1753391830609,0.5289606,187.48,187.44,7.2923]
[1753391831130,26.0,187.45,187.4,6.02616459]
[1753391831438,26.0,187.45,187.41,0.69]
[1753391832135,26.0,187.45,187.4,5.33616459]
[1753391832338,26.0,187.45,187.42,0.69]
[1753391832541,26.0,187.45,187.43,0.69]
[1753391833523,0.5,187.44,187.43,0.69]
[1753391833744,26.0,187.4,187.39,11.43789496]
[1753391834749,18.56210504,187.39,187.37,37.84]
[1753391834948,26.0,187.37,187.36,1.79722314]
[1753391835257,26.0,187.37,187.36,39.65722314]
[1753391835750,56.0,187.37,187.36,45.68454167]
[1753391835929,56.0,187.37,187.36,0.69]
[1753391836441,56.0,187.37,187.32,0.69]
[1753391836750,30.0,187.34,187.32,0.69]
[1753391837116,26.0,187.32,187.31,6.93220301]
[1753391837333,26.0,187.32,187.31,7.21652615]
[1753391837860,56.0,187.32,187.31,14.11072615]
[1753391839361,56.0,187.32,187.31,14.17072615]
[1753391839560,56.0,187.32,187.31,13.88640301]
[1753391839859,56.0,187.32,187.31,8.5477]
[1753391840262,56.0,187.32,187.31,0.06]
[1753391842259,56.0,187.32,187.31,0.75]
[1753391843526,56.0,187.32,187.31,6.37306639]
[1753391845765,18.56210504,187.39,187.31,19.71992453]
[1753391846056,18.56210504,187.39,187.33,6.3293]
[1753391846238,18.56210504,187.39,187.34,0.69]
[1753391846429,26.0,187.36,187.34,0.69]
[1753391847457,26.0,187.36,187.35,38.54]
[1753391847650,26.0,187.36,187.35,43.87760341]
[1753391850244,26.0,187.36,187.35,6.03760341]
[1753391850555,26.0,187.36,187.35,43.83760341]
[1753391850859,26.0,187.36,187.35,44.12192655]
[1753391851040,26.0,187.36,187.35,45.72282655]
[1753391851833,18.56210504,187.39,187.35,59.06683509]
[1753391852040,18.56210504,187.39,187.36,0.7]
[1753391852959,18.56210504,187.39,187.38,0.28432314]
[1753391853158,18.56210504,187.39,187.36,0.7]
[1753391853159,26.0,187.37,187.36,0.7]
[1753391853368,26.0,187.36,187.35,6.93850341]
[1753391853542,26.0,187.36,187.35,44.73850341]
[1753391853848,26.0,187.36,187.35,45.43850341]
[1753391854054,26.0,187.36,187.35,7.63850341]
[1753391854361,26.0,187.36,187.35,43.85760341]
[1753391856757,26.0,187.36,187.35,37.82]
[1753391856958,26.0,187.36,187.33,5.33817327]
[1753391857260,26.0,187.36,187.35,37.8]
[1753391857659,26.0,187.36,187.35,37.78]
[1753391857965,26.67,187.36,187.35,37.78]
[1753391859038,26.0,187.33,187.32,37.78]
[1753391861366,26.5289606,187.35,187.31,0.06]
[1753391861568,26.0,187.33,187.31,0.06]
[1753391862062,0.67,187.34,187.31,0.06]
[1753391862355,0.67,187.33,187.31,0.06]
[1753391862764,0.67,187.32,187.31,0.06]
[1753391863659,6.00845825,187.32,187.31,0.06]
[1753391863858,26.5289606,187.34,187.31,0.06]
[1753391864048,26.0,187.32,187.31,0.06]
[1753391864547,26.67,187.32,187.31,0.06]
[1753391864747,26.0,187.32,187.31,0.06]
[1753391867478,1.1989606,187.38,187.31,0.76]
[1753391867770,18.56210504,187.39,187.32,37.8]
[1753391868060,18.56210504,187.39,187.35,0.28432314]
[1753391868245,18.56210504,187.39,187.37,0.28432314]
[1753391868454,18.56210504,187.39,187.38,0.7]
[1753391869259,18.56210504,187.39,187.38,6.03674885]
[1753391869467,18.56210504,187.39,187.38,6.32107199]
[1753391872764,26.0,187.37,187.36,5.62164167]
[1753391872958,26.0,187.37,187.36,43.11731853]
[1753391873953,26.0,187.37,187.36,43.81731853]
[1753391875751,26.0,187.37,187.36,44.10164167]
[1753391878354,18.56210504,187.39,187.37,0.28432314]
[1753391878554,18.56210504,187.39,187.38,38.48]
[1753391880671,18.56210504,187.39,187.38,43.81674885]
[1753391881072,18.56210504,187.39,187.38,6.03674885]
[1753391881272,18.56210504,187.39,187.38,43.11674885]
[1753391881480,18.56210504,187.39,187.38,43.81674885]
[1753391882174,18.56210504,187.39,187.38,37.78]
[1753391882571,18.59210504,187.39,187.38,37.78]
[1753391883558,19.28210504,187.39,187.38,37.78]
[1753391884471,18.59210504,187.39,187.38,37.78]
[1753391885174,18.59210504,187.39,187.38,44.10107199]
[1753391886370,0.03,187.43,187.4,6.4256]
[1753391886580,0.03,187.43,187.42,0.28432314]
[1753391886947,0.03,187.43,187.42,0.98432314]
[1753391887550,0.03,187.43,187.42,6.319933]
[1753391892686,0.03,187.43,187.38,0.7]
[1753391892878,0.69,187.42,187.36,5.33731853]
[1753391893066,0.69,187.42,187.37,37.78]
[1753391893269,0.69,187.42,187.37,38.48]
[1753391894288,26.69,187.42,187.38,5.33674885]
[1753391894485,26.69,187.42,187.39,37.76]
[1753391895178,26.69,187.41,187.39,37.76]
[1753391895387,26.0,187.41,187.39,37.76]
[1753391895573,26.69,187.41,187.39,37.76]
[1753391896181,26.0,187.4,187.39,37.76]
[1753391896384,26.69,187.4,187.34,0.28432314]
[1753391896688,26.69,187.4,187.35,37.78]
[1753391896884,26.69,187.39,187.35,37.78]
[1753391897087,26.0,187.39,187.35,37.78]
[1753391897266,0.69,187.38,187.35,37.78]
[1753391897664,0.69,187.37,187.32,5.33840842]
[1753391897869,0.69,187.36,187.33,37.78]
[1753391898585,0.69,187.35,187.33,37.78]
[1753391898813,26.0,187.38,187.33,37.78]
[1753391898814,0.69,187.34,187.33,37.78]
[1753391898972,0.69,187.34,187.31,0.06]
[1753391899167,0.5289606,187.37,187.33,37.78]
[1753391899785,0.69,187.36,187.33,37.78]
[1753391899984,26.0,187.34,187.33,37.78]
[1753391900184,26.69,187.34,187.33,37.78]
[1753391904379,0.69,187.36,187.33,37.78]
[1753391904589,0.69,187.35,187.33,37.78]
[1753391905320,26.0,187.34,187.31,0.06]
[1753391905479,26.0,187.34,187.32,37.78]
[1753391906175,26.0,187.34,187.31,0.06]
[1753391906375,0.69,187.33,187.31,0.06]
[1753391906774,0.5289606,187.32,187.31,0.06]
[1753391907000,1.2189606,187.33,187.31,0.06]
[1753391907315,0.69,187.32,187.31,0.06]
[1753391907594,0.5289606,187.33,187.31,0.06]
[1753391907896,0.69,187.32,187.31,0.06]
[1753391909395,12.39815825,187.32,187.31,0.06]
[1753391909997,31.29420282,187.32,187.31,0.06]
[1753391910599,16.78468397,187.27,187.25,0.06]
[1753391910801,0.5289606,187.26,187.25,0.06]
[1753391911018,1.2189606,187.26,187.25,0.06]
[1753391911197,18.00364457,187.26,187.25,0.06]
[1753391911384,1.2189606,187.26,187.25,0.06]
[1753391911802,26.69,187.26,187.25,0.06]
[1753391912305,26.5289606,187.28,187.25,0.06]
[1753391912512,0.69,187.27,187.25,0.06]
[1753391912920,0.5289606,187.26,187.25,0.06]
[1753391913219,0.5289606,187.26,187.18,6.05245111]
[1753391913391,0.69,187.25,187.19,38.51]
[1753391913591,26.0,187.26,187.2,0.71]
[1753391913786,26.0,187.26,187.2,0.99432314]
[1753391914306,0.5289606,187.31,187.2,0.99432314]
[1753391914307,0.5289606,187.31,187.21,0.71]
[1753391914490,0.69,187.34,187.24,0.28432314]
[1753391914690,0.5289606,187.33,187.25,38.55]
[1753391914995,0.69,187.32,187.25,38.55]
[1753391915299,26.5289606,187.31,187.26,37.84]
[1753391915506,0.69,187.3,187.26,37.84]
[1753391915712,1.2189606,187.29,187.26,37.84]
[1753391916718,0.69,187.28,187.19,6.7985]
[1753391917014,0.5289606,187.27,187.2,37.84]
[1753391917311,1.2189606,187.27,187.2,43.18188034]
[1753391917928,1.2189606,187.27,187.2,5.34188034]
[1753391918297,1.2189606,187.27,187.21,37.84]
[1753391918494,26.0,187.24,187.21,43.18156936]
[1753391918694,26.0,187.24,187.2,5.34183445]
[1753391918917,26.0,187.24,187.21,37.82]
[1753391919099,26.0,187.24,187.21,38.53]
[1753391919722,26.0,187.24,187.21,43.87156395]
[1753391920400,26.0,187.24,187.2,5.34182529]
[1753391920708,26.0,187.23,187.21,37.82]
[1753391921418,31.33995539,187.27,187.21,37.82]
[1753391921629,31.33995539,187.27,187.19,5.34214708]
[1753391921630,26.0,187.23,187.22,37.8]
[1753391923537,1.2189606,187.26,187.22,37.8]
[1753391924396,26.5289606,187.29,187.23,0.71]
[1753391924819,0.5289606,187.29,187.23,0.71]
[1753391925016,27.2189606,187.29,187.23,0.71]
[1753391925215,0.69,187.33,187.23,0.99432314]
[1753391925401,0.03,187.28,187.25,0.28432314]
[1753391925603,0.03,187.28,187.26,38.51]
[1753391925921,0.03,187.28,187.24,6.05073915]
[1753391926300,0.03,187.28,187.25,37.8]
[1753391926596,0.03,187.28,187.24,6.05073915]
[1753391926597,0.03,187.28,187.26,37.8]
[1753391928115,0.03,187.28,187.27,37.8]
[1753391928932,26.03,187.28,187.27,37.8]
[1753391929516,0.03,187.28,187.27,37.8]
[1753391930219,0.03,187.28,187.24,6.05066363]
[1753391930220,0.03,187.28,187.24,0.71]
[1753391930427,0.03,187.28,187.25,37.8]
[1753391930605,0.03,187.28,187.22,0.34432314]
[1753391930606,26.0,187.23,187.22,0.06]
[1753391931009,26.0,187.23,187.22,37.86]
[1753391933211,32.02993605,187.27,187.22,37.86]
[1753391933412,32.55889665,187.27,187.22,37.86]
[1753391933613,32.55889665,187.27,187.23,37.8]
[1753391934409,32.02993605,187.27,187.23,37.8]
[1753391935219,1.2189606,187.26,187.23,37.8]
[1753391936026,0.69,187.26,187.23,37.8]
[1753391936235,26.0,187.23,187.22,0.06]
[1753391936417,26.0,187.23,187.22,37.86]
[1753391936623,26.0,187.23,187.22,38.57]
[1753391937534,26.0,187.27,187.22,38.57]
[1753391937707,0.03,187.28,187.23,0.7]
[1753391937907,0.69,187.28,187.23,0.7]
[1753391938107,6.02960331,187.28,187.23,0.7]
[1753391938518,26.0,187.25,187.23,6.04101942]
[1753391939029,26.0,187.25,187.24,37.8]
[1753391940724,26.0,187.25,187.22,6.10125045]
[1753391940938,26.0,187.25,187.24,37.8]
[1753391941935,26.0,187.25,187.23,0.7]
[1753391942110,0.03,187.28,187.24,43.14073915]
[1753391942310,0.03,187.28,187.25,0.7]
[1753391943532,26.0,187.26,187.24,37.8]
[1753391943833,26.0,187.26,187.24,38.5]
[1753391944419,26.0,187.26,187.24,43.14071251]
[1753391944719,0.03,187.28,187.25,0.7]
[1753391945526,26.0,187.26,187.25,0.7]
[1753391946314,26.66,187.26,187.22,0.06]
[1753391946515,26.66,187.26,187.23,37.8]
[1753391947229,26.0,187.26,187.23,38.5]
[1753391947430,26.0,187.26,187.25,0.06]
[1753391947740,31.89870595,187.28,187.25,0.06]
[1753391948033,32.55870595,187.28,187.26,37.8]
[1753391949348,0.66,187.27,187.26,37.8]
[1753391949515,5.34016874,187.26,187.25,0.06]
[1753391949722,0.66,187.26,187.25,37.86]
[1753391950030,0.5289606,187.26,187.25,0.06]
[1753391950234,1.1889606,187.26,187.25,0.06]
[1753391951614,32.52912934,187.26,187.25,0.06]
[1753391953045,6.24448981,187.28,187.25,0.76]
[1753391953252,6.24448981,187.28,187.26,0.7]
[1753391953582,6.24448981,187.28,187.27,0.7]
[1753391953717,6.24448981,187.28,187.25,0.76]
[1753391953919,6.24448981,187.28,187.26,0.7]
[1753391954221,6.24448981,187.28,187.27,37.8]
[1753391954649,26.0,187.26,187.25,0.06]
[1753391954833,26.0,187.26,187.25,37.86]
[1753391955724,26.0,187.26,187.25,0.06]
[1753391957232,26.0,187.26,187.25,0.76]
[1753391957755,26.0,187.26,187.25,6.10045393]
[1753391957948,26.0,187.26,187.25,43.90045393]
[1753391964462,26.0,187.26,187.25,0.06]
[1753391964762,26.0,187.26,187.25,37.86]
[1753391965762,26.0,187.26,187.25,38.56]
[1753391966150,26.0,187.26,187.25,0.06]
[1753391966350,26.0,187.26,187.25,37.86]
[1753391966949,26.0,187.26,187.25,0.06]
[1753391967149,26.0,187.26,187.25,37.84]
[1753391967775,26.0,187.26,187.25,38.54]
[1753391968074,26.0,187.26,187.25,43.88045393]
[1753391969264,26.03,187.26,187.25,43.88045393]
[1753391970362,26.03,187.26,187.25,6.10045393]
[1753391970662,26.03,187.26,187.25,43.88045393]
[1753391973872,0.03,187.26,187.25,45.75767707]
[1753391974077,6.24448981,187.28,187.26,17.06900711]
[1753391974273,0.03,187.28,187.27,38.59831149]
[1753391974457,0.03,187.28,187.27,39.29831149]
[1753391974663,0.03,187.28,187.27,56.08299546]
[1753391975280,0.03,187.32,187.28,17.06900711]
[1753391975477,0.03,187.32,187.31,5.33874325]
[1753391975776,0.03,187.32,187.31,43.11874325]
[1753391975972,0.03,187.32,187.31,43.81874325]
[1753391976360,0.03,187.32,187.31,6.03874325]
[1753391976671,0.03,187.32,187.31,44.10306639]
[1753391978560,0.03,187.32,187.31,6.32306639]
[1753391978761,0.03,187.32,187.31,44.10306639]
[1753391979560,0.03,187.32,187.31,6.32306639]
[1753391979761,0.03,187.32,187.31,44.10306639]
[1753391980978,0.03,187.32,187.25,106.87162936]
[1753391980979,0.72,187.32,187.25,106.87162936]
[1753391981158,0.69,187.31,187.26,43.12016874]
[1753391981358,26.03,187.32,187.26,43.12016874]
[1753391981581,26.03,187.32,187.27,0.98432314]
[1753391981778,26.0,187.3,187.28,37.78]
[1753391982879,26.0,187.29,187.26,0.7]
[1753391983083,26.0,187.29,187.27,38.48]
[1753391984463,26.0,187.28,187.27,37.78]
[1753391984664,26.0,187.28,187.25,6.10039727]
[1753391984878,26.0,187.28,187.26,37.78]
[1753391985090,0.69,187.31,187.26,38.48]
[1753391985272,0.69,187.31,187.27,37.78]
[1753391985467,26.0,187.3,187.27,37.78]
[1753391985673,26.0,187.3,187.27,38.48]
[1753391985972,26.0,187.3,187.27,43.81981329]
[1753391986372,26.0,187.3,187.27,38.48]
[1753391986578,26.0,187.3,187.27,43.81986691]
[1753391988565,0.72,187.32,187.27,43.81986691]
[1753391988566,26.03,187.32,187.28,0.7]
[1753391988769,26.03,187.32,187.29,38.48]
[1753391989269,0.03,187.32,187.29,38.48]
[1753391989682,26.0,187.3,187.29,37.78]
[1753391989987,0.69,187.3,187.29,37.78]
[1753391991469,0.69,187.3,187.25,0.06]
[1753391991470,1.2189606,187.3,187.25,0.06]
[1753391991775,6.55798889,187.3,187.25,37.84]
[1753391991977,26.0,187.27,187.25,37.84]
[1753391992279,26.69,187.27,187.25,37.84]
[1753391992677,26.69,187.26,187.25,37.84]
[1753391993676,26.0,187.26,187.25,37.84]
[1753391996599,0.69,187.28,187.25,37.84]
[1753391996776,0.69,187.27,187.25,37.84]
[1753391996976,26.0,187.26,187.25,37.84]
[1753391997898,26.68,187.26,187.25,37.84]
[1753391998092,26.0,187.26,187.25,37.84]
[1753391998870,26.0,187.26,187.25,0.06]
[1753391999199,26.0,187.26,187.25,37.84]
[1753392000592,6.02016874,187.26,187.25,0.06]
[1753392000801,26.0,187.28,187.25,0.06]
[1753392001201,26.0,187.28,187.25,0.74]
[1753392001383,0.68,187.27,187.25,0.06]
[1753392001693,0.68,187.27,187.26,37.78]
[1753392001694,0.5289606,187.27,187.26,37.78]
[1753392001890,31.33874325,187.31,187.26,37.78]
[1753392001891,1.2089606,187.3,187.26,37.78]
[1753392002088,26.0,187.27,187.26,37.78]
[1753392002594,26.0,187.27,187.26,38.46]
[1753392002787,26.0,187.27,187.26,37.78]
[1753392003097,0.68,187.3,187.26,37.78]
[1753392003306,5.33880714,187.31,187.27,0.68]
[1753392003489,26.0,187.28,187.27,0.68]
[1753392003793,0.68,187.31,187.27,0.68]
[1753392003994,26.0,187.29,187.26,43.12009546]
[1753392004204,26.0,187.29,187.28,0.68]
[1753392004791,0.03,187.32,187.28,6.01959846]
[1753392005097,0.03,187.32,187.29,38.46]
[1753392005481,0.03,187.32,187.3,0.68]
[1753392005900,0.03,187.32,187.3,0.96432314]
[1753392006133,0.03,187.32,187.31,0.53387432]
[1753392006285,0.03,187.32,187.31,6.83694071]
[1753392006484,0.03,187.36,187.32,17.06900711]
[1753392006690,0.03,187.36,187.34,6.94062314]
[1753392007090,0.03,187.36,187.35,0.68]
[1753392007492,1e-08,187.36,187.35,18.28276745]
[1753392007886,1e-08,187.36,187.35,19.92866745]
[1753392008392,1e-08,187.36,187.35,25.26627086]
[1753392008917,0.03,187.43,187.36,17.06900711]
[1753392009083,0.03,187.43,187.38,0.28432314]
[1753392009286,0.03,187.43,187.39,0.68]
[1753392009501,0.71,187.43,187.4,37.76]
[1753392009712,0.71,187.43,187.39,0.68]
[1753392009916,0.71,187.43,187.4,37.76]
[1753392010417,0.03,187.43,187.41,0.68]
[1753392010716,0.03,187.43,187.42,0.68]
[1753392012596,0.03,187.43,187.42,6.01560986]
[1753392013647,0.03,187.43,187.42,6.299933]
[1753392014298,0.03,187.43,187.42,44.039933]
[1753392021419,0.03,187.43,187.4,5.33617929]
[1753392021721,0.03,187.43,187.41,37.74]
[1753392022323,0.03,187.43,187.41,38.42]
[1753392022513,0.03,187.43,187.42,5.33560986]
[1753392022819,0.03,187.43,187.39,13.34069121]
[1753392022820,0.68,187.42,187.39,5.33646405]
[1753392023013,0.68,187.42,187.4,37.72]
[1753392023610,26.03,187.43,187.4,37.72]
[1753392023824,26.03,187.43,187.41,37.72]
[1753392024204,26.71,187.43,187.41,37.72]
[1753392024521,26.71,187.43,187.42,37.72]